fUSD/lending_fUSD_20240718
["ID","MTS","AMOUNT","RATE_DAILY","PERIOD"]
[332578062,1721310645153,-766.06,0.00034896,14]
[332578063,1721310645163,-1992.25,0.00034896,14]
[332578064,1721310645175,-1306.53,0.00034896,14]
[332578065,1721310645191,-500.0,0.00034896,14]
[332578066,1721310645207,-500.0,0.00034896,14]
[332578067,1721310645220,-500.0,0.00034896,14]
[332578068,1721310645229,-1456.18,0.00034896,14]
[332578069,1721310645239,-500.0,0.00034896,14]
[332578070,1721310645248,-500.0,0.00034896,14]
[332578071,1721310645258,-500.0,0.00034896,14]
[332578072,1721310645268,-2232.89,0.00034896,14]
[332578073,1721310645280,-1283.48,0.00034896,14]
[332578074,1721310645290,-500.0,0.00034896,14]
[332578075,1721310645299,-1169.15,0.00034896,14]
[332578076,1721310645308,-500.0,0.00034896,14]
[332578077,1721310645318,-500.0,0.00034896,14]
[332578078,1721310645327,-500.0,0.00034896,14]
[332578079,1721310645336,-3334.53,0.00034896,14]
[332578080,1721310645345,-500.0,0.00034896,14]
[332578081,1721310645354,-500.0,0.00034896,14]
[332578083,1721310645364,-1369.91,0.00034896,14]
[332578085,1721310645373,-500.0,0.00034896,14]
[332578087,1721310645382,-500.0,0.00034896,14]
[332578089,1721310645392,-809.26,0.00034896,14]
[332578091,1721310645401,-859.73,0.00034896,14]
[332578093,1721310645410,-859.73,0.00034896,14]
[332578095,1721310645420,-500.0,0.00034896,14]
[332578097,1721310645433,-500.0,0.00034896,14]
[332578099,1721310645452,-500.0,0.00034896,14]
[332578101,1721310645473,-500.0,0.00034896,14]
[332578103,1721310645495,-734.16,0.00034896,14]
[332578105,1721310645517,-734.16,0.00034896,14]
[332578107,1721310645558,-500.0,0.00034896,14]
[332578109,1721310645597,-500.0,0.00034896,14]
[332578111,1721310645608,-500.0,0.00034896,14]
[332578113,1721310645618,-500.0,0.00034896,14]
[332578115,1721310645627,-500.0,0.00034896,14]
[332578117,1721310645637,-1892.09,0.00034896,14]
[332578119,1721310645646,-500.0,0.00034896,14]
[332578121,1721310645656,-1892.09,0.00034896,14]
[332578123,1721310645665,-500.0,0.00034896,14]
[332578125,1721310645674,-946.12,0.00034896,14]
[332578126,1721310645684,-500.0,0.00034896,14]
[332578129,1721310645694,-500.0,0.00034896,14]
[332578130,1721310645703,-500.0,0.00034896,14]
[332578132,1721310645712,-500.0,0.00034896,14]
[332578134,1721310645722,-3108.41,0.00034896,14]
[332578136,1721310645731,-1002.9,0.00034896,14]
[332578139,1721310645741,-500.0,0.00034896,14]
[332578141,1721310645750,-500.0,0.00034896,14]
[332578142,1721310645760,-500.0,0.00034896,14]
[332578144,1721310645770,-500.0,0.00034896,14]
[332578146,1721310645779,-500.0,0.00034896,14]
[332578148,1721310645789,-500.0,0.00034896,14]
[332578150,1721310645799,-938.39,0.00034896,14]
[332578152,1721310645808,-938.39,0.00034896,14]
[332578154,1721310645817,-1098.81,0.00034896,14]
[332578156,1721310645827,-500.0,0.00034896,14]
[332578158,1721310645837,-151.0,0.00034896,7]
[332578160,1721310645846,-500.0,0.00034896,14]
[332578162,1721310645855,-500.0,0.00034896,14]
[332578164,1721310645864,-500.0,0.00034896,14]
[332578166,1721310645873,-500.0,0.00034896,14]
[332578167,1721310645883,-500.0,0.00034896,14]
[332578168,1721310645892,-500.0,0.00034896,14]
[332578169,1721310645901,-1384.67,0.00034896,14]
[332578170,1721310645910,-1384.67,0.00034896,14]
[332578171,1721310645919,-740.28,0.00034896,14]
[332578172,1721310645929,-500.0,0.00034896,14]
[332578173,1721310645938,-500.0,0.00034896,14]
[332578174,1721310645947,-500.0,0.00034896,14]
[332578175,1721310645957,-500.0,0.00034896,14]
[332578176,1721310645966,-531.61,0.00034896,14]
[332578177,1721310645975,-151.0,0.00034896,7]
[332578178,1721310645984,-531.61,0.00034896,14]
[332578179,1721310645994,-500.0,0.00034896,14]
[332578180,1721310646003,-500.0,0.00034896,14]
[332578181,1721310646012,-500.0,0.00034896,14]
[332578182,1721310646022,-500.0,0.00034896,14]
[332578183,1721310646230,-662.71,0.00034896,14]
[332578184,1721310646241,-662.71,0.00034896,14]
[332578185,1721310646251,-500.0,0.00034896,14]
[332578186,1721310646260,-821.49,0.00034896,120]
[332578187,1721310646271,-500.0,0.00034896,14]
[332578188,1721310646281,-500.0,0.00034896,14]
[332578189,1721310646291,-500.0,0.00034896,14]
[332578190,1721310646300,-151.0,0.00034896,7]
[332578191,1721310646309,-151.0,0.00034896,7]
[332578192,1721310646319,-500.0,0.00034896,14]
[332578193,1721310646328,-500.0,0.00034896,14]
[332578194,1721310646338,-1333.2,0.00034896,14]
[332578195,1721310646347,-701.19,0.00034896,14]
[332578196,1721310646356,-701.19,0.00034896,14]
[332578197,1721310646366,-1333.2,0.00034896,14]
[332578198,1721310646375,-500.0,0.00034896,14]
[332578199,1721310646385,-500.0,0.00034896,14]
[332578200,1721310646394,-500.0,0.00034896,14]
[332578201,1721310646403,-500.0,0.00034896,14]
[332578202,1721310646412,-574.01,0.00034896,14]
[332578203,1721310646422,-151.0,0.00034896,7]
[332578204,1721310646431,-151.0,0.00034896,7]
[332578205,1721310646440,-500.75,0.00034896,14]
[332578206,1721310646449,-500.75,0.00034896,14]
[332578207,1721310646459,-500.0,0.00034896,14]
[332578208,1721310646468,-1332.07,0.00034896,14]
[332578209,1721310646477,-500.0,0.00034896,14]
[332578210,1721310646487,-500.0,0.00034896,14]
[332578211,1721310646498,-500.0,0.00034896,14]
[332578212,1721310646507,-500.0,0.00034896,14]
[332578213,1721310646516,-500.0,0.00034896,14]
[332578214,1721310646527,-500.0,0.00034896,14]
[332578215,1721310646537,-500.0,0.00034896,14]
[332578216,1721310646547,-500.0,0.00034896,14]
[332578217,1721310646556,-500.0,0.00034896,14]
[332578218,1721310646565,-510.46,0.00034896,14]
[332578219,1721310646574,-500.0,0.00034896,14]
[332578220,1721310646584,-500.0,0.00034896,14]
[332578221,1721310646593,-3294.59,0.00034896,14]
[332578222,1721310646603,-500.0,0.00034896,14]
[332578223,1721310646612,-1087.86,0.00034896,14]
[332578224,1721310646621,-500.0,0.00034896,14]
[332578225,1721310646631,-608.44,0.00034896,14]
[332578226,1721310646640,-608.44,0.00034896,14]
[332578227,1721310646649,-537.004728,0.00034896,7]
[332578228,1721310646658,-537.004728,0.00034896,7]
[332578229,1721310646667,-500.0,0.00034896,14]
[332578230,1721310646676,-1723.98,0.00034896,14]
[332578231,1721310646686,-1723.98,0.00034896,14]
[332578232,1721310646695,-500.0,0.00034896,14]
[332578233,1721310646705,-9805.5,0.00034896,14]
[332578234,1721310646714,-500.0,0.00034896,14]
[332578235,1721310646724,-151.0,0.00034896,7]
[332578236,1721310646733,-537.004728,0.00034896,7]
[332578237,1721310646743,-537.004728,0.00034896,7]
[332578238,1721310646752,-583.70406391,0.00034896,14]
[332578239,1721310646761,-151.0,0.00034896,7]
[332578240,1721310646772,-500.0,0.00034896,14]
[332578241,1721310646782,-1091.88,0.00034896,14]
[332578242,1721310646791,-500.0,0.00034896,14]
[332578243,1721310646800,-500.0,0.00034896,14]
[332578244,1721310646810,-500.0,0.00034896,14]
[332578245,1721310646819,-732.17,0.00034896,14]
[332578246,1721310646828,-732.17,0.00034896,14]
[332578247,1721310646837,-3586.38,0.00034896,14]
[332578248,1721310646846,-500.0,0.00034896,14]
[332578249,1721310646856,-500.0,0.00034896,14]
[332578250,1721310646866,-500.0,0.00034896,14]
[332578251,1721310646875,-500.0,0.00034896,14]
[332578252,1721310646885,-786.62,0.00034896,14]
[332578253,1721310646894,-2241.68,0.00034896,14]
[332578254,1721310646903,-2529.2,0.00034896,14]
[332578255,1721310646913,-500.0,0.00034896,14]
[332578256,1721310646923,-500.0,0.00034896,14]
[332578257,1721310646932,-500.0,0.00034896,14]
[332578258,1721310646942,-697.59,0.00034896,14]
[332578259,1721310646952,-2984.617918,0.00034896,7]
[332578260,1721310646961,-151.0,0.00034896,7]
[332578261,1721310646971,-151.0,0.00034896,7]
[332578262,1721310646980,-500.0,0.00034896,14]
[332578263,1721310646991,-500.0,0.00034896,14]
[332578264,1721310647002,-500.0,0.00034896,14]
[332578265,1721310647012,-500.0,0.00034896,14]
[332578266,1721310647024,-500.0,0.00034896,14]
[332578267,1721310647035,-500.0,0.00034896,14]
[332578268,1721310647044,-1626.75,0.00034896,14]
[332578269,1721310647054,-500.0,0.00034896,14]
[332578270,1721310647063,-151.0,0.00034896,7]
[332578271,1721310647072,-151.0,0.00034896,7]
[332578272,1721310647081,-1643.78,0.00034896,14]
[332578273,1721310647092,-1643.78,0.00034896,14]
[332578274,1721310647101,-500.0,0.00034896,14]
[332578275,1721310647110,-500.0,0.00034896,14]
[332578276,1721310647119,-500.0,0.00034896,14]
[332578277,1721310647129,-4117.55,0.00034896,14]
[332578278,1721310647138,-1088.91,0.00034896,14]
[332578279,1721310647147,-500.0,0.00034896,14]
[332578280,1721310647156,-500.0,0.00034896,14]
[332578281,1721310647166,-500.0,0.00034896,14]
[332578282,1721310647175,-473.50755676,0.00034896,14]
[332578283,1721310647184,-573.45,0.00034896,14]
[332578284,1721310647195,-216.964174,0.00034896,7]
[332578285,1721310647205,-216.964174,0.00034896,7]
[332578286,1721310647215,-500.0,0.00034896,14]
[332578287,1721310647224,-500.0,0.00034896,14]
[332578288,1721310647233,-500.0,0.00034896,14]
[332578289,1721310647243,-1666.31,0.00034896,14]
[332578290,1721310647252,-664.57,0.00034896,14]
[332578291,1721310647261,-151.0,0.00034896,7]
[332578292,1721310647273,-151.0,0.00034896,7]
[332578293,1721310647282,-500.0,0.00034896,14]
[332578294,1721310647292,-500.0,0.00034896,14]
[332578295,1721310647301,-500.0,0.00034896,14]
[332578296,1721310647310,-500.0,0.00034896,14]
[332578297,1721310647320,-8269.36,0.00034896,14]
[332578298,1721310647330,-500.0,0.00034896,14]
[332578299,1721310647339,-500.0,0.00034896,14]
[332578300,1721310647347,-500.0,0.00034896,14]
[332578301,1721310647357,-500.0,0.00034896,14]
[332578302,1721310647367,-500.0,0.00034896,14]
[332578303,1721310647376,-500.0,0.00034896,14]
[332578304,1721310647385,-2229.54,0.00034896,14]
[332578305,1721310647395,-216.964174,0.00034896,7]
[332578306,1721310647404,-216.964174,0.00034896,7]
[332578307,1721310647414,-1677.87,0.00034896,14]
[332578308,1721310647423,-500.0,0.00034896,14]
[332578309,1721310647432,-2124.11,0.00034896,14]
[332578310,1721310647442,-500.0,0.00034896,14]
[332578311,1721310647451,-500.0,0.00034896,14]
[332578312,1721310647460,-500.0,0.00034896,14]
[332578313,1721310647469,-670.57,0.00034896,14]
[332578314,1721310647479,-500.0,0.00034896,14]
[332578315,1721310647488,-670.57,0.00034896,14]
[332578316,1721310647498,-500.0,0.00034896,14]
[332578317,1721310647507,-500.0,0.00034896,14]
[332578318,1721310647517,-1127.54,0.00034896,14]
[332578319,1721310647528,-1194.66,0.00034896,14]
[332578320,1721310647537,-500.0,0.00034896,14]
[332578321,1721310647556,-1194.66,0.00034896,14]
[332578322,1721310647573,-1357.68,0.00034896,14]
[332578323,1721310647589,-500.0,0.00034896,14]
[332578324,1721310647610,-579.89,0.00034896,14]
[332578325,1721310647629,-579.89,0.00034896,14]
[332578326,1721310647647,-151.0,0.00034896,7]
[332578327,1721310647666,-247.179419,0.00034896,7]
[332578328,1721310647680,-2196.11,0.00034896,14]
[332578329,1721310647699,-500.0,0.00034896,14]
[332578330,1721310647719,-1232.58,0.00034896,14]
[332578331,1721310647734,-616.14,0.00034896,14]
[332578332,1721310647751,-616.14,0.00034896,14]
[332578333,1721310647767,-947.9,0.00034896,14]
[332578334,1721310647791,-3404.42,0.00034896,14]
[332578335,1721310647810,-500.0,0.00034896,14]
[332578336,1721310647824,-500.0,0.00034896,14]
[332578337,1721310647839,-151.0,0.00034896,7]
[332578338,1721310647854,-1528.15,0.00034896,14]
[332578339,1721310647869,-500.0,0.00034896,14]
[332578340,1721310647892,-151.0,0.00034896,7]
[332578341,1721310647906,-765.48,0.00034896,14]
[332578342,1721310647921,-765.48,0.00034896,14]
[332578343,1721310647936,-500.0,0.00034896,14]
[332578344,1721310647951,-2330.73,0.00034896,14]
[332578345,1721310647966,-500.0,0.00034896,14]
[332578346,1721310647981,-500.0,0.00034896,14]
[332578347,1721310647995,-500.0,0.00034896,14]
[332578348,1721310648010,-3138.61,0.00034896,14]
[332578349,1721310648028,-500.0,0.00034896,14]
[332578350,1721310648043,-237.26008218,0.00034896,14]
[332578351,1721310648057,-500.0,0.00034896,14]
[332578352,1721310648072,-592.43,0.00034896,14]
[332578353,1721310648087,-1340.93,0.00034896,14]
[332578354,1721310648102,-500.0,0.00034896,14]
[332578355,1721310648117,-4484.79,0.00034896,14]
[332578356,1721310648132,-500.0,0.00034896,14]
[332578357,1721310648148,-1585.84,0.00034896,14]
[332578358,1721310648163,-500.0,0.00034896,14]
[332578359,1721310648179,-500.0,0.00034896,14]
[332578360,1721310648195,-500.0,0.00034896,14]
[332578361,1721310648211,-500.0,0.00034896,14]
[332578362,1721310648227,-500.0,0.00034896,14]
[332578363,1721310648242,-500.0,0.00034896,14]
[332578364,1721310648257,-3787.8,0.00034896,14]
[332578365,1721310648278,-500.0,0.00034896,14]
[332578366,1721310648295,-2740.41,0.00034896,14]
[332578367,1721310648311,-2740.41,0.00034896,14]
[332578368,1721310648329,-1662.63,0.00034896,14]
[332578369,1721310648346,-1662.63,0.00034896,14]
[332578370,1721310648362,-151.0,0.00034896,7]
[332578371,1721310648380,-151.0,0.00034896,7]
[332578372,1721310648396,-260.785444,0.00034896,7]
[332578373,1721310648412,-260.785444,0.00034896,7]
[332578374,1721310648428,-734.35,0.00034896,14]
[332578375,1721310648446,-500.0,0.00034896,14]
[332578376,1721310648463,-500.0,0.00034896,14]
[332578377,1721310648481,-500.0,0.00034896,14]
[332578378,1721310648498,-1453.92,0.00034896,14]
[332578379,1721310648515,-260.785444,0.00034896,7]
[332578380,1721310648537,-1710.83,0.00034896,14]
[332578381,1721310648554,-1710.83,0.00034896,14]
[332578382,1721310648574,-151.0,0.00034896,7]
[332578383,1721310648592,-260.785444,0.00034896,7]
[332578384,1721310648608,-151.0,0.00034896,7]
[332578385,1721310648624,-260.785444,0.00034896,7]
[332578386,1721310648640,-260.785444,0.00034896,7]
[332578387,1721310648657,-693.91,0.00034896,14]
[332578388,1721310648674,-500.0,0.00034896,14]
[332578389,1721310648692,-903.81,0.00034896,14]
[332578390,1721310648709,-500.0,0.00034896,14]
[332578391,1721310648726,-1251.33,0.00034896,14]
[332578392,1721310648744,-500.0,0.00034896,14]
[332578393,1721310648761,-1333.24,0.00034896,14]
[332578394,1721310648780,-3453.62,0.00034896,14]
[332578395,1721310648798,-1333.24,0.00034896,14]
[332578396,1721310648814,-500.0,0.00034896,14]
[332578397,1721310648832,-500.0,0.00034896,14]
[332578398,1721310648850,-500.0,0.00034896,14]
[332578399,1721310648867,-500.0,0.00034896,14]
[332578400,1721310648883,-664.54,0.00034896,14]
[332578401,1721310648900,-1360.97,0.00034896,14]
[332578402,1721310648917,-1158.6,0.00034896,14]
[332578403,1721310648932,-680.66,0.00034896,14]
[332578404,1721310648949,-1158.6,0.00034896,14]
[332578405,1721310648965,-680.66,0.00034896,14]
[332578406,1721310648982,-151.0,0.00034896,7]
[332578407,1721310649000,-1158.6,0.00034896,14]
[332578408,1721310649016,-927.04,0.00034896,14]
[332578409,1721310649037,-500.0,0.00034896,14]
[332578410,1721310649054,-151.0,0.00034896,7]
[332578411,1721310649072,-927.04,0.00034896,14]
[332578412,1721310649090,-500.0,0.00034896,14]
[332578413,1721310649109,-500.0,0.00034896,14]
[332578414,1721310649127,-1655.38,0.00034896,14]
[332578415,1721310649145,-151.0,0.00034896,7]
[332578416,1721310649161,-500.0,0.00034896,14]
[332578417,1721310649179,-3011.66,0.00034896,14]
[332578418,1721310649197,-500.0,0.00034896,14]
[332578419,1721310649214,-500.0,0.00034896,14]
[332578420,1721310649230,-500.0,0.00034896,14]
[332578421,1721310649247,-500.0,0.00034896,14]
[332578422,1721310649264,-2377.48,0.00034896,14]
[332578423,1721310649284,-2098.05,0.00034896,14]
[332578424,1721310649300,-2056.68,0.00034896,14]
[332578425,1721310649317,-500.0,0.00034896,14]
[332578426,1721310649334,-420.730163,0.00034896,7]
[332578427,1721310649351,-500.0,0.00034896,14]
[332578428,1721310649367,-420.730163,0.00034896,7]
[332578429,1721310649383,-500.0,0.00034896,14]
[332578430,1721310649401,-420.730163,0.00034896,7]
[332578431,1721310649419,-500.0,0.00034896,14]
[332578432,1721310649437,-2297.37,0.00034896,14]
[332578433,1721310649456,-2297.37,0.00034896,14]
[332578434,1721310649474,-500.0,0.00034896,14]
[332578435,1721310649490,-500.0,0.00034896,14]
[332578436,1721310649508,-500.0,0.00034896,14]
[332578437,1721310649525,-1351.63,0.00034896,14]
[332578438,1721310649541,-151.0,0.00034896,7]
[332578439,1721310649557,-1351.63,0.00034896,14]
[332578440,1721310649573,-163.229368,0.00034896,7]
[332578441,1721310649589,-2976.07,0.00034896,14]
[332578442,1721310649599,-500.0,0.00034896,14]
[332578443,1721310649609,-500.0,0.00034896,14]
[332578444,1721310649619,-420.730163,0.00034896,7]
[332578445,1721310649629,-420.730163,0.00034896,7]
[332578446,1721310649638,-500.0,0.00034896,14]
[332578447,1721310649648,-420.730163,0.00034896,7]
[332578448,1721310649657,-500.0,0.00034896,14]
[332578449,1721310649667,-500.0,0.00034896,14]
[332578450,1721310649677,-1351.63,0.00034896,14]
[332578451,1721310649686,-535.02,0.00034896,14]
[332578452,1721310649696,-1092.8,0.00034896,14]
[332578453,1721310649705,-1092.8,0.00034896,14]
[332578454,1721310649715,-3285.93,0.00034896,14]
[332578455,1721310649724,-500.0,0.00034896,14]
[332578456,1721310650142,-544.13,0.00034896,14]
[332578457,1721310650179,-3622.56,0.00034896,14]
[332578458,1721310650202,-3622.56,0.00034896,14]
[332578459,1721310650212,-1625.07,0.00034896,14]
[332578460,1721310650222,-500.0,0.00034896,14]
[332578461,1721310650231,-151.0,0.00034896,7]
[332578462,1721310650242,-500.0,0.00034896,14]
[332578463,1721310650252,-500.0,0.00034896,14]
[332578464,1721310650261,-151.0,0.00034896,7]
[332578465,1721310650270,-151.0,0.00034896,7]
[332578466,1721310650283,-500.0,0.00034896,14]
[332578467,1721310650292,-500.0,0.00034896,14]
[332578468,1721310650301,-500.0,0.00034896,14]
[332578469,1721310650310,-500.0,0.00034896,14]
[332578470,1721310650320,-151.0,0.00034896,7]
[332578471,1721310650329,-151.0,0.00034896,7]
[332578472,1721310650338,-1315.06,0.00034896,14]
[332578473,1721310650348,-1315.06,0.00034896,14]
[332578474,1721310650357,-819.06,0.00034896,14]
[332578475,1721310650367,-151.0,0.00034896,7]
[332578476,1721310650376,-1315.06,0.00034896,14]
[332578477,1721310650385,-819.06,0.00034896,14]
[332578478,1721310650394,-500.0,0.00034896,14]
[332578479,1721310650403,-500.0,0.00034896,14]
[332578480,1721310650412,-500.0,0.00034896,14]
[332578481,1721310650421,-1477.38,0.00034896,14]
[332578482,1721310650431,-2263.47,0.00034896,14]
[332578483,1721310650440,-500.0,0.00034896,14]
[332578484,1721310650449,-500.0,0.00034896,14]
[332578485,1721310650458,-1373.52,0.00034896,14]
[332578486,1721310650467,-1187.04,0.00034896,14]
[332578487,1721310650476,-1373.52,0.00034896,14]
[332578488,1721310650485,-1187.04,0.00034896,14]
[332578489,1721310650496,-927.17,0.00034896,14]
[332578490,1721310650506,-500.0,0.00034896,14]
[332578491,1721310650515,-2081.64,0.00034896,14]
[332578492,1721310650525,-618.8,0.00034896,14]
[332578493,1721310650534,-618.8,0.00034896,14]
[332578494,1721310650544,-575.64,0.00034896,14]
[332578495,1721310650554,-575.64,0.00034896,14]
[332578496,1721310650563,-500.0,0.00034896,14]
[332578497,1721310650572,-500.0,0.00034896,14]
[332578498,1721310650582,-500.0,0.00034896,14]
[332578499,1721310650591,-500.0,0.00034896,14]
[332578500,1721310650600,-1523.54,0.00034896,14]
[332578501,1721310650609,-696.51,0.00034896,14]
[332578502,1721310650618,-2084.96,0.00034896,14]
[332578503,1721310650627,-795.01,0.00034896,14]
[332578504,1721310650637,-795.01,0.00034896,14]
[332578505,1721310650646,-795.01,0.00034896,14]
[332578506,1721310650655,-500.0,0.00034896,14]
[332578507,1721310650664,-673.45,0.00034896,14]
[332578508,1721310650673,-500.0,0.00034896,14]
[332578509,1721310650682,-500.0,0.00034896,14]
[332578510,1721310650691,-2564.65,0.00034896,14]
[332578511,1721310650701,-500.0,0.00034896,14]
[332578512,1721310650710,-500.0,0.00034896,14]
[332578513,1721310650719,-500.0,0.00034896,14]
[332578514,1721310650728,-500.0,0.00034896,14]
[332578515,1721310650737,-500.0,0.00034896,14]
[332578516,1721310650747,-2110.179893,0.00034896,7]
[332578517,1721310650756,-2110.179893,0.00034896,7]
[332578518,1721310650765,-5208.85,0.00034896,14]
[332578519,1721310650775,-271.527832,0.00034896,7]
[332578520,1721310650783,-2423.33,0.00034896,14]
[332578521,1721310650792,-2110.179893,0.00034896,7]
[332578522,1721310650801,-5208.85,0.00034896,14]
[332578523,1721310650810,-271.527832,0.00034896,7]
[332578524,1721310650819,-500.0,0.00034896,14]
[332578525,1721310650829,-500.0,0.00034896,14]
[332578526,1721310650837,-271.527832,0.00034896,7]
[332578527,1721310650847,-271.527832,0.00034896,7]
[332578528,1721310650856,-1743.13,0.00034896,14]
[332578529,1721310650866,-2752.67,0.00034896,14]
[332578530,1721310650875,-2752.67,0.00034896,14]
[332578531,1721310650884,-2752.67,0.00034896,14]
[332578532,1721310650893,-2110.179893,0.00034896,7]
[332578533,1721310650902,-271.527832,0.00034896,7]
[332578534,1721310650912,-2110.179893,0.00034896,7]
[332578535,1721310650921,-976.01,0.00034896,14]
[332578536,1721310650930,-271.527832,0.00034896,7]
[332578537,1721310650939,-500.0,0.00034896,14]
[332578538,1721310650948,-2110.179893,0.00034896,7]
[332578539,1721310650958,-504.59,0.00034896,14]
[332578540,1721310650968,-500.0,0.00034896,14]
[332578541,1721310650976,-271.527832,0.00034896,7]
[332578542,1721310650985,-504.59,0.00034896,14]
[332578543,1721310650995,-500.0,0.00034896,14]
[332578544,1721310651005,-500.0,0.00034896,14]
[332578545,1721310651014,-271.527832,0.00034896,7]
[332578546,1721310651025,-1136.24,0.00034896,14]
[332578547,1721310651035,-300.74804462,0.00034896,14]
[332578548,1721310651044,-500.0,0.00034896,14]
[332578549,1721310651056,-500.0,0.00034896,14]
[332578550,1721310651065,-169.090099,0.00034896,7]
[332578551,1721310651074,-500.0,0.00034896,14]
[332578552,1721310651083,-169.090099,0.00034896,7]
[332578553,1721310651092,-2259.32,0.00034896,14]
[332578554,1721310651101,-169.090099,0.00034896,7]
[332578555,1721310651111,-434.58303586,0.00034896,14]
[332578556,1721310651119,-212.839766,0.00034896,7]
[332578557,1721310651129,-2259.32,0.00034896,14]
[332578558,1721310651139,-151.0,0.00034896,7]
[332578559,1721310651148,-212.839766,0.00034896,7]
[332578560,1721310651157,-3171.14,0.00034896,14]
[332578561,1721310651167,-151.0,0.00034896,7]
[332578562,1721310651176,-500.0,0.00034896,14]
[332578563,1721310651186,-212.839766,0.00034896,7]
[332578564,1721310651196,-500.0,0.00034896,14]
[332578565,1721310651207,-282.376632,0.00034896,7]
[332578566,1721310651216,-212.839766,0.00034896,7]
[332578567,1721310651225,-500.0,0.00034896,14]
[332578568,1721310651234,-500.0,0.00034896,14]
[332578569,1721310651245,-1478.49,0.00034896,14]
[332578570,1721310651254,-1478.49,0.00034896,14]
[332578571,1721310651263,-169.090099,0.00034896,7]
[332578572,1721310651274,-500.0,0.00034896,14]
[332578573,1721310651284,-169.090099,0.00034896,7]
[332578574,1721310651293,-2162.75,0.00034896,14]
[332578575,1721310651303,-169.090099,0.00034896,7]
[332578576,1721310651312,-500.0,0.00034896,14]
[332578577,1721310651321,-500.0,0.00034896,14]
[332578578,1721310651330,-212.839766,0.00034896,7]
[332578579,1721310651339,-212.839766,0.00034896,7]
[332578580,1721310651349,-212.839766,0.00034896,7]
[332578581,1721310651358,-212.839766,0.00034896,7]
[332578582,1721310651367,-2848.41,0.00034896,14]
[332578583,1721310651377,-1215.89,0.00034896,14]
[332578584,1721310651386,-1110.5,0.00034896,14]
[332578585,1721310651395,-2848.41,0.00034896,14]
[332578586,1721310651404,-2848.41,0.00034896,14]
[332578587,1721310651414,-500.0,0.00034896,14]
[332578588,1721310651423,-500.0,0.00034896,14]
[332578589,1721310651432,-500.0,0.00034896,14]
[332578590,1721310651442,-500.0,0.00034896,14]
[332578591,1721310651451,-500.0,0.00034896,14]
[332578592,1721310651460,-1712.52,0.00034896,14]
[332578593,1721310651470,-500.0,0.00034896,14]
[332578594,1721310651479,-500.0,0.00034896,14]
[332578595,1721310651489,-500.0,0.00034896,14]
[332578596,1721310651499,-4410.91,0.00034896,14]
[332578597,1721310651509,-500.0,0.00034896,14]
[332578598,1721310651519,-500.0,0.00034896,14]
[332578599,1721310651531,-151.0,0.00034896,7]
[332578600,1721310651540,-653.26256,0.00034896,7]
[332578601,1721310651549,-501.03250609,0.00034896,14]
[332578602,1721310651558,-151.0,0.00034896,7]
[332578603,1721310651567,-653.26256,0.00034896,7]